bitfinex-derivatives/quotes_ETHF0:USTF0_20250417
["timestamp","ask_amount","ask_price","bid_price","bid_amount"]
[1744892043622,5.42824,1595.8,1595.7,1.26311763]
[1744892047130,5.42824,1595.8,1595.7,3.37001763]
[1744892047332,10.42824,1595.8,1595.7,0.00940763]
[1744892047634,16.41824,1595.8,1595.7,0.00940763]
[1744892050835,11.41824,1595.8,1595.7,0.00940763]
[1744892051032,1.25403,1595.3,1595.2,5.355]
[1744892051233,1.25403,1595.3,1595.2,6.6068]
[1744892051431,1.25401,1595.4,1595.3,1.25396]
[1744892051627,3.41791,1595.4,1595.3,3.39626]
[1744892052338,5.42021,1595.4,1595.3,3.39626]
[1744892052636,9.48693,1595.5,1595.4,1.25395]
[1744892052637,7.60614,1595.5,1595.4,1.25395]
[1744892052832,1.25403,1595.4,1595.3,1.25399]
[1744892053032,3.41793,1595.4,1595.3,1.25399]
[1744892055143,6.62573,1595.4,1595.3,1.25399]
[1744892055347,1.25403,1595.3,1595.2,0.00940763]
[1744892055545,5.56303,1595.3,1595.2,0.00940763]
[1744892055736,10.56303,1595.3,1595.2,0.00940763]
[1744892056851,16.55303,1595.3,1595.2,7.63e-06]
[1744892057950,11.55303,1595.3,1595.2,7.63e-06]
[1744892058152,3.43143,1595.3,1595.2,1.25411763]
[1744892058452,1.25403,1595.3,1595.2,1.25411763]
[1744892059349,1.25403,1595.3,1595.2,7.63e-06]
[1744892059544,3.41463,1595.3,1595.2,7.63e-06]
[1744892059744,3.41463,1595.3,1595.2,1.25411763]
[1744892060553,3.41463,1595.3,1595.2,7.63e-06]
[1744892061254,3.41463,1595.3,1595.2,1.25411763]
[1744892061948,3.41463,1595.3,1595.2,7.63e-06]
[1744892063257,3.41463,1595.3,1595.2,1.25411763]
[1744892064148,1.25403,1595.3,1595.2,1.25411763]
[1744892065862,3.37418,1595.5,1595.4,1.25395]
[1744892066151,1.25382,1595.7,1595.6,1.25375]
[1744892066960,5.48665,1595.9,1595.8,1.25364]
[1744892067655,5.48665,1595.9,1595.8,3.37164]
[1744892068359,5.48665,1595.9,1595.8,2.118]
[1744892069157,7.50845,1595.9,1595.8,4.2841]
[1744892069660,7.50845,1595.9,1595.8,2.1661]
[1744892069952,1.25379,1595.6,1595.5,6.54865]
[1744892070159,1.25378,1595.7,1595.6,1.25374]
[1744892071258,1.25368,1595.8,1595.7,1.25366]
[1744892071657,5.48661,1595.9,1595.8,1.25364]
[1744892072353,1.26293763,1596.0,1595.9,1.25356]
[1744892072560,1.2536,1595.9,1595.8,1.25357]
[1744892072863,1.26291763,1596.0,1595.9,1.25356]
[1744892073162,1.26291763,1596.0,1595.9,3.46486]
[1744892073765,0.00940763,1596.0,1595.9,3.46486]
[1744892074067,1.26288763,1596.0,1595.9,3.46486]
[1744892076169,1.26288763,1596.0,1595.9,2.2113]
[1744892078170,1.25364,1595.8,1595.7,4.46148]
[1744892078466,1.25364,1595.8,1595.7,6.57608]
[1744892080374,3.38094,1595.8,1595.7,6.57608]
[1744892083769,3.38094,1595.8,1595.7,8.76088]
[1744892085971,1.25361,1595.9,1595.8,1.25364]
[1744892086169,1.25361,1595.9,1595.8,3.27874]
[1744892086472,1.26294763,1596.0,1595.9,1.25356]
[1744892086769,0.00940763,1596.0,1595.9,8.51046]
[1744892090077,1.26288763,1596.0,1595.9,8.51046]
[1744892090875,1.26288763,1596.0,1595.9,7.2569]
[1744892091173,1.26288763,1596.0,1595.9,6.48646]
[1744892091371,0.00940763,1596.0,1595.9,6.48646]
[1744892091571,1.26288763,1596.0,1595.9,6.48646]
[1744892091780,0.00940763,1596.0,1595.9,6.48646]
[1744892093779,0.00940763,1596.0,1595.9,3.27866]
[1744892093975,0.00940763,1596.0,1595.9,6.48646]
[1744892094581,1.26288763,1596.0,1595.9,6.48646]
[1744892095976,0.00940763,1596.0,1595.9,6.48646]
[1744892104387,1.26288763,1596.0,1595.9,6.48646]
[1744892105386,3.38988763,1596.0,1595.9,3.2078]
[1744892105590,5.39588763,1596.0,1595.9,5.2914]
[1744892105884,7.45538763,1596.0,1595.9,5.2914]
[1744892106082,11.20190763,1596.0,1595.7,3.2078]
[1744892106286,11.20190763,1596.0,1595.5,9.57754012]
[1744892106287,1.25379,1595.6,1595.5,8.32373012]
[1744892106479,1.25379,1595.6,1595.5,11.70850012]
[1744892108686,1.25379,1595.6,1595.5,2.1309]
[1744892108889,3.33839,1595.6,1595.5,2.1309]
[1744892109386,1.25387,1595.5,1595.4,5.49855]
[1744892109580,3.44727,1595.5,1595.4,5.49855]
[1744892111284,1.25376,1595.7,1595.6,1.25379]
[1744892111787,1.25379,1595.6,1595.5,6.65361]
[1744892111989,1.25379,1595.6,1595.5,3.44581]
[1744892114287,1.25379,1595.6,1595.5,2.192]
[1744892114484,5.53389,1595.6,1595.5,2.192]
[1744892114691,5.53389,1595.6,1595.5,3.44587]
[1744892121694,4.2801,1595.6,1595.5,3.44587]
[1744892121994,5.53389,1595.6,1595.5,3.44587]
[1744892123896,0.00940763,1596.0,1595.8,1.25364]
[1744892124101,1.26291763,1596.0,1595.9,1.25356]
[1744892124399,3.45641763,1596.0,1595.9,1.25356]
[1744892125702,3.45641763,1596.0,1595.9,3.47026]
[1744892126000,0.00940763,1596.0,1595.9,3.47026]
[1744892126797,2.19790763,1596.0,1595.9,3.47026]
[1744892127003,3.45138763,1596.0,1595.9,3.47026]
[1744892127497,1.25356,1595.9,1595.8,1.25359]
[1744892127698,3.44206,1595.9,1595.8,1.25359]
[1744892127885,1.25364,1595.8,1595.7,8.83005]
[1744892128091,1.25371,1595.7,1595.6,9.57747012]
[1744892128491,3.28171,1595.7,1595.6,9.57747012]
[1744892128698,3.28171,1595.7,1595.6,8.32373012]
[1744892128898,3.28171,1595.7,1595.6,9.57752012]
[1744892129399,3.28171,1595.7,1595.6,1.25379]
[1744892130091,2.028,1595.7,1595.6,3.33179]
[1744892130893,3.28171,1595.7,1595.6,3.33179]
[1744892131101,2.028,1595.7,1595.6,3.33179]
[1744892132794,3.28171,1595.7,1595.6,3.33179]
[1744892134307,1.25379,1595.6,1595.5,3.2078]
[1744892134497,3.29029,1595.6,1595.5,3.2078]
[1744892134692,2.0365,1595.6,1595.5,4.46167]
[1744892134998,1.25371,1595.7,1595.6,1.25374]
[1744892135195,3.29021,1595.7,1595.6,3.32464]
[1744892135704,2.0365,1595.7,1595.6,3.32464]
[1744892135903,7.51512,1595.9,1595.8,1.25364]
[1744892136297,7.51512,1595.9,1595.8,3.32454]
[1744892137003,1.26291763,1596.0,1595.9,1.25356]
[1744892137199,0.00940763,1596.0,1595.9,3.41356]
[1744892137509,1.26288763,1596.0,1595.9,3.41356]
[1744892137805,0.00940763,1596.0,1595.9,3.41356]
[1744892138208,1.26288763,1596.0,1595.9,3.41356]
[1744892138802,1.26288763,1596.0,1595.9,2.16]
[1744892139008,1.25356,1595.9,1595.8,1.25358]
[1744892139309,1.25356,1595.9,1595.8,3.41358]
[1744892140414,3.36785763,1596.0,1595.9,1.25356]
[1744892140705,3.36785763,1596.0,1595.9,3.36726]
[1744892146926,3.36785763,1596.0,1595.9,1.25356]
[1744892147320,1.25371,1595.8,1595.7,1.25364]
[1744892147519,5.47053,1595.9,1595.8,1.25364]
[1744892148132,5.47053,1595.9,1595.8,3.27234]
[1744892148430,3.35343,1595.9,1595.8,3.27234]
[1744892152740,1.25363,1595.9,1595.8,3.27234]
[1744892156844,1.25363,1595.9,1595.8,1.25364]
[1744892157035,3.30973,1595.9,1595.8,1.25364]
[1744892158146,3.30973,1595.9,1595.8,3.31334]
[1744892162442,1.25363,1595.9,1595.8,3.31334]
[1744892162639,0.00940763,1596.0,1595.9,1.25356]
[1744892162840,0.00940763,1596.0,1595.9,5.34016]
[1744892164045,1.26288763,1596.0,1595.9,5.34016]
[1744892164746,0.00940763,1596.0,1595.9,5.34016]
[1744892167048,1.26288763,1596.0,1595.9,5.34016]
[1744892168140,0.00940763,1596.0,1595.9,5.34016]
[1744892169944,1.26288763,1596.0,1595.9,5.34016]
[1744892170149,0.00940763,1596.0,1595.9,5.34016]
[1744892176050,0.00940763,1596.0,1595.9,9.56116]
[1744892176948,1.26288763,1596.0,1595.9,9.56116]
[1744892177145,0.00940763,1596.0,1595.9,9.56116]
[1744892177549,0.00940763,1596.0,1595.9,5.34016]
[1744892177853,0.00940763,1596.0,1595.8,11.53153012]
[1744892178158,1.25356,1595.9,1595.8,11.53153012]
[1744892178349,3.44466,1595.9,1595.8,11.53153012]
[1744892178548,5.59436,1595.9,1595.8,11.53153012]
[1744892179546,1.25356,1595.9,1595.8,12.78517012]
[1744892179855,1.25356,1595.9,1595.8,14.90007012]
[1744892180254,1.25356,1595.9,1595.8,6.57634]
[1744892181550,3.25495763,1596.0,1595.9,1.25356]
[1744892181745,3.25495763,1596.0,1595.9,3.36846]
[1744892182448,5.34355763,1596.0,1595.9,3.36846]
[1744892183158,1.25356,1595.9,1595.8,3.2078]
[1744892183347,3.39646,1595.9,1595.8,3.2078]
[1744892183649,3.39646,1595.9,1595.8,4.46144]
[1744892183855,3.39646,1595.9,1595.8,6.59764]
[1744892184349,3.39646,1595.9,1595.8,5.344]
[1744892186951,3.39646,1595.9,1595.8,6.59764]
[1744892188055,3.39646,1595.9,1595.8,5.344]
[1744892189458,3.39646,1595.9,1595.8,6.59764]
[1744892189759,1.25356,1595.9,1595.8,6.59764]
[1744892191664,1.25356,1595.9,1595.8,5.344]
[1744892191863,3.29156,1595.9,1595.8,5.344]
[1744892192560,1.25356,1595.9,1595.8,6.59764]
[1744892192956,1.25356,1595.9,1595.8,5.344]
[1744892193358,3.29156,1595.9,1595.8,5.344]
[1744892193865,3.29156,1595.9,1595.8,6.59764]
[1744892198166,1.25356,1595.9,1595.8,6.59764]
[1744892200564,0.00940763,1596.0,1595.9,1.25356]
[1744892200767,0.00940763,1596.0,1595.9,9.47986]
[1744892201964,0.00940763,1596.0,1595.9,17.80359012]
[1744892204067,5.66354,1596.5,1596.3,1.25324]
[1744892204268,5.53344,1596.5,1596.4,3.34566]
[1744892205273,2.2125,1596.5,1596.4,3.34566]
[1744892206172,3.46559,1596.5,1596.4,3.34566]
[1744892206472,2.2125,1596.5,1596.4,3.34566]
[1744892206772,2.2125,1596.5,1596.4,6.55346]
[1744892208366,3.46559,1596.5,1596.4,6.55346]
[1744892208670,2.2125,1596.5,1596.4,6.55346]
[1744892209267,4.3365,1596.5,1596.4,6.55346]
[1744892209574,1.25316,1596.4,1596.3,0.00940763]
[1744892209776,3.37716,1596.4,1596.3,0.00940763]
[1744892209967,3.37716,1596.4,1596.3,1.26264763]
[1744892210677,2.124,1596.4,1596.3,1.26264763]
[1744892211178,2.124,1596.4,1596.3,3.34364763]
[1744892213375,2.2125,1596.5,1596.4,1.25316]
[1744892213678,2.00510763,1596.6,1596.5,1.25309]
[1744892213878,2.00510763,1596.6,1596.5,3.26109]
[1744892214280,0.00940763,1596.6,1596.5,8.61769]
[1744892217783,2.1788,1596.9,1596.8,1.25285]
[1744892218475,2.1788,1596.9,1596.8,5.42115]
[1744892219484,0.00940763,1597.0,1596.9,1.25277]
[1744892219684,0.00940763,1597.0,1596.9,3.29827]
[1744892219881,0.00940763,1597.0,1596.9,6.50607]
[1744892220389,2.17070763,1597.0,1596.9,6.50607]
[1744892221788,2.17070763,1597.0,1596.9,3.29827]
[1744892223093,0.00940763,1597.0,1596.9,3.29827]
[1744892223289,4.2697,1597.3,1597.2,1.25254]
[1744892223493,4.2697,1597.3,1597.2,5.43334]
[1744892223788,2.0878,1597.5,1597.4,1.25238]
[1744892223987,6.3575,1597.5,1597.4,1.25238]
[1744892224190,6.3575,1597.5,1597.4,3.26648]
[1744892224785,7.6098,1597.5,1597.4,3.26648]
[1744892224995,7.6098,1597.5,1597.4,1.25238]
[1744892228703,6.3575,1597.5,1597.4,1.25238]
[1744892228904,6.3575,1597.5,1597.4,3.28678]
[1744892229204,4.2349,1597.5,1597.4,3.28678]
[1744892230000,2.0878,1597.5,1597.4,6.49458]
[1744892230301,0.00940763,1597.6,1597.5,1.2523]
[1744892230501,0.00940763,1597.6,1597.5,5.3559]
[1744892230704,4.45984,1597.9,1597.5,8.3176]
[1744892230898,5.40484,1597.9,1597.8,1.25207]
[1744892231102,4.1528,1597.9,1597.6,3.2078]
[1744892231306,1.25214,1597.7,1597.6,4.46002]
[1744892231802,3.35551,1597.8,1597.7,1.25214]
[1744892232000,3.36491763,1597.8,1597.7,1.25214]
[1744892232199,1.25214,1597.7,1597.6,4.45996]
[1744892232401,3.35554,1597.7,1597.6,4.45996]
[1744892232602,3.35554,1597.7,1597.6,6.61576]
[1744892233206,2.1034,1597.7,1597.6,6.61576]
[1744892233505,0.00940763,1597.8,1597.7,1.25214]
[1744892233695,0.00940763,1597.8,1597.7,3.40794]
[1744892234599,2.0671,1598.1,1597.9,1.25193]
[1744892234806,3.35954,1598.0,1597.9,1.25193]
[1744892235503,1.25199,1597.9,1597.8,2.0436]
[1744892235699,1.25207,1597.8,1597.7,1.25209]
[1744892235906,3.31917,1597.8,1597.7,1.25209]
[1744892236198,3.31917,1597.8,1597.6,7.2446]
[1744892236199,1.25214,1597.7,1597.6,6.50356]
[1744892236408,1.25214,1597.7,1597.6,6.50362]
[1744892236607,3.35974,1597.7,1597.6,6.50362]
[1744892237816,1.25199,1597.9,1597.6,8.38178]
[1744892238001,5.50898,1598.0,1597.8,3.2078]
[1744892238204,1.25199,1597.9,1597.8,8.7582]
[1744892238502,5.50896,1598.0,1597.9,1.25199]
[1744892238998,4.257,1598.0,1597.9,1.25199]
[1744892239194,4.257,1598.0,1597.9,3.44629]
[1744892239402,2.1905,1598.0,1597.9,3.44629]
[1744892240303,2.07590763,1598.1,1598.0,1.25191]
[1744892240507,2.07590763,1598.1,1598.0,3.35661]
[1744892241806,0.00940763,1598.1,1598.0,3.35661]
[1744892242505,0.00940763,1598.1,1598.0,6.56441]
[1744892245614,0.00940763,1598.1,1598.0,10.77641]
[1744892251118,1.26123763,1598.1,1598.0,2.1047]
[1744892251313,5.25560763,1598.1,1597.8,6.5639]
[1744892251520,1.25199,1597.9,1597.8,5.37327]
[1744892251715,1.25214,1597.8,1597.7,1.25214]
[1744892251916,2.0802,1597.8,1597.7,3.26924]
[1744892252122,3.32247,1598.0,1597.9,1.25199]
[1744892252325,1.25199,1597.9,1597.8,2.0746]
[1744892252716,3.39839,1597.9,1597.8,2.0746]
[1744892253323,1.25207,1597.8,1597.7,1.2521]
[1744892253620,3.39847,1597.8,1597.7,3.3267]
[1744892254123,1.25214,1597.7,1597.6,3.2078]
[1744892254314,1.25222,1597.6,1597.5,5.36966]
[1744892254517,3.44592,1597.6,1597.5,3.32686]
[1744892254715,4.3401,1597.6,1597.5,3.32686]
[1744892254915,5.59232,1597.6,1597.5,3.32686]
[1744892255115,4.3401,1597.6,1597.5,3.32686]
[1744892255311,1.25214,1597.8,1597.7,1.25214]
[1744892255515,2.1229,1597.8,1597.7,1.25214]
[1744892255717,1.25203,1597.9,1597.8,1.25207]
[1744892256312,1.25203,1597.9,1597.8,2.1838]
[1744892256513,1.25203,1597.9,1597.6,9.63]
[1744892256514,1.25214,1597.7,1597.6,8.66997]
[1744892256720,1.25214,1597.7,1597.6,6.64377]
[1744892257113,3.31263,1597.8,1597.6,5.3916]
[1744892257319,3.31263,1597.8,1597.7,1.25214]
[1744892258129,1.25214,1597.7,1597.6,6.64376]
[1744892259720,3.31264,1597.8,1597.7,1.25214]
[1744892259920,1.25214,1597.7,1597.6,6.64378]
[1744892260121,3.31264,1597.8,1597.7,1.25214]
[1744892260628,1.25214,1597.7,1597.6,6.64377]
[1744892260927,3.33894,1597.7,1597.6,3.2078]
[1744892261120,5.51644,1597.7,1597.6,3.2078]
[1744892261422,5.51644,1597.7,1597.6,4.46002]
[1744892262130,4.2643,1597.7,1597.6,4.46002]
[1744892262826,1.25204,1597.9,1597.8,1.25205]
[1744892263033,3.34134,1597.9,1597.8,1.25205]
[1744892263331,1.25207,1597.8,1597.7,5.35798]
[1744892264322,3.34135,1597.9,1597.7,5.35798]
[1744892264524,3.34135,1597.9,1597.7,4.1059]
[1744892264732,3.30007,1598.0,1597.7,4.1059]
[1744892265029,5.48367,1598.0,1597.9,1.25199]
[1744892265926,4.2317,1598.0,1597.9,1.25199]
[1744892266331,5.48361,1598.0,1597.9,1.25199]
[1744892266530,4.2317,1598.0,1597.9,3.36049]
[1744892267923,5.48361,1598.0,1597.9,3.36049]
[1744892269133,4.2317,1598.0,1597.9,3.36049]
[1744892269534,5.48361,1598.0,1597.9,3.36049]
[1744892270537,1.26125763,1598.1,1598.0,1.25191]
[1744892270834,1.26125763,1598.1,1598.0,3.42751]
[1744892272133,5.45145763,1598.1,1598.0,3.42751]
[1744892273139,4.19960763,1598.1,1598.0,3.42751]
[1744892273435,4.19960763,1598.1,1598.0,6.63531]
[1744892273436,0.00940763,1598.1,1598.0,6.63531]
[1744892273737,0.00940763,1598.1,1598.0,10.82411]
[1744892277037,1.26123763,1598.1,1598.0,10.82411]
[1744892277241,0.00940763,1598.1,1598.0,10.82411]
[1744892277435,3.26253763,1598.1,1598.0,10.82411]
[1744892277738,3.26253763,1598.1,1598.0,3.2078]
[1744892277939,3.26253763,1598.1,1598.0,4.45971]
[1744892278138,3.26253763,1598.1,1598.0,6.50151]
[1744892278931,3.26253763,1598.1,1598.0,4.45971]
[1744892279332,3.26253763,1598.1,1598.0,6.50151]
[1744892281246,2.01070763,1598.1,1598.0,6.50151]
[1744892281544,0.00940763,1598.1,1598.0,6.50151]
[1744892281745,0.00940763,1598.1,1598.0,8.69981]
[1744892285548,5.43043763,1598.1,1598.0,8.69981]
[1744892285750,4.17860763,1598.1,1598.0,8.69981]
[1744892286153,1.99180763,1598.1,1598.0,8.69981]
[1744892289156,0.00940763,1598.1,1598.0,8.69981]
[1744892295365,1.26123763,1598.1,1598.0,6.50151]
[1744892295566,3.27663763,1598.1,1598.0,3.2078]
[1744892295766,1.25199,1597.9,1597.8,11.76135156]
[1744892296268,3.26739,1597.9,1597.8,10.50928156]
[1744892296465,3.26739,1597.9,1597.8,8.33288156]
[1744892297161,8.26739,1597.9,1597.8,8.33288156]
[1744892299570,3.26739,1597.9,1597.8,8.33288156]
[1744892300367,2.1644,1598.0,1597.9,1.25199]
[1744892300670,3.41631,1598.0,1597.9,3.37129]
[1744892300861,1.26129763,1598.1,1598.0,1.25191]
[1744892301063,1.26129763,1598.1,1598.0,3.26581]
[1744892301463,0.00940763,1598.1,1598.0,3.26581]
[1744892301658,1.26123763,1598.1,1598.0,3.26581]
[1744892301864,0.00940763,1598.1,1598.0,8.26581]
[1744892302065,5.27647,1598.7,1598.1,3.12959]
[1744892302274,2.1546,1598.6,1598.4,1.25157]
[1744892302467,1.25152,1598.5,1598.4,1.25157]
[1744892302972,1.2516,1598.4,1598.3,3.26551]
[1744892303177,1.2516,1598.4,1598.3,2.02330763]
[1744892304475,3.3529,1598.4,1598.3,2.02330763]
[1744892306176,3.3529,1598.4,1598.3,3.27497763]
[1744892306380,1.25158,1598.5,1598.4,1.25158]
[1744892306679,1.25158,1598.5,1598.4,2.0451]
[1744892306869,3.35288,1598.5,1598.4,2.0451]
[1744892307371,1.2516,1598.4,1598.3,0.00940763]
[1744892307570,3.3258,1598.4,1598.3,2.15800763]
[1744892308575,3.3258,1598.4,1598.3,0.00940763]
[1744892310273,5.4647,1598.4,1598.3,0.00940763]
[1744892313582,3.1294,1598.2,1597.9,4.45975]
[1744892313780,1.25191,1598.0,1597.9,6.48255]
[1744892315375,3.3382,1598.1,1598.0,1.25191]
[1744892315581,7.24181,1598.2,1598.1,1.25183]
[1744892315783,7.24181,1598.2,1598.1,5.40343]
[1744892316081,7.24181,1598.2,1598.1,7.42623]
[1744892318284,1.9839,1598.3,1598.2,1.25175]
[1744892318486,1.9839,1598.3,1598.2,3.25295]
[1744892318785,1.25171,1598.3,1598.2,3.25295]
[1744892320385,9.428,1598.5,1598.4,1.2516]
[1744892320585,1.2516,1598.4,1598.3,6.45352]
[1744892321282,1.2516,1598.4,1598.3,1.9941]
[1744892321485,3.3085,1598.4,1598.3,1.9941]
[1744892321784,3.3085,1598.4,1598.3,3.24577]
[1744892323285,3.3085,1598.4,1598.3,1.9941]
[1744892323584,1.25167,1598.3,1598.2,1.2517]
[1744892323789,3.31077,1598.3,1598.2,2.1034]
[1744892323987,7.22621,1598.3,1598.0,1.25181]
[1744892324188,1.25189,1598.1,1598.0,3.35521]
[1744892325089,3.31099,1598.1,1598.0,3.35521]
[1744892327590,3.31099,1598.1,1598.0,2.1034]
[1744892327892,1.25183,1598.1,1598.0,3.35523]
[1744892330585,3.36423,1598.1,1598.0,3.35523]
[1744892330790,3.36423,1598.1,1598.0,2.1034]
[1744892330993,3.36423,1598.1,1598.0,3.35531]
[1744892332496,1.25183,1598.1,1598.0,3.35531]
[1744892336491,4.1894,1598.2,1598.0,3.35531]
[1744892336702,1.25183,1598.2,1598.1,3.30663]
[1744892342006,3.33194,1598.3,1598.2,1.25175]
[1744892342304,1.25174,1598.3,1598.2,5.24625]
[1744892342505,7.48306,1598.4,1598.3,1.25167]
[1744892342706,3.27706,1598.4,1598.3,3.23357]
[1744892343007,7.24152,1598.5,1598.4,1.2516]
[1744892343202,5.99,1598.5,1598.4,3.2335]
[1744892343505,7.24152,1598.5,1598.4,3.2335]
[1744892344298,5.99,1598.5,1598.4,3.2335]
[1744892344505,7.24152,1598.5,1598.4,3.2335]
[1744892345000,9.33672,1598.5,1598.4,3.2335]
[1744892347515,3.34672,1598.5,1598.4,3.2335]
[1744892351816,1.25167,1598.3,1598.2,8.3747]
[1744892352119,1.25167,1598.3,1598.2,7.50249]
[1744892352315,5.30467,1598.3,1598.2,7.50249]
[1744892352512,5.30467,1598.3,1598.2,5.34639]
[1744892352718,1.25175,1598.2,1598.1,8.33288156]
[1744892352919,5.52085,1598.2,1598.1,9.58471156]
[1744892353219,5.52085,1598.2,1598.1,8.33288156]
[1744892353814,3.38875,1598.2,1598.1,9.58471156]
[1744892354123,3.38875,1598.2,1598.1,11.59271156]
[1744892354819,9.30182,1598.3,1598.2,1.25175]
[1744892355022,9.30182,1598.3,1598.2,5.27245]
[1744892355322,11.43882,1598.3,1598.2,5.27245]
[1744892355517,11.43882,1598.3,1598.2,2.008]
[1744892355720,10.1871,1598.3,1598.1,4.2808]
[1744892356024,10.1871,1598.3,1598.1,7.55815]
[1744892356216,1.25175,1598.2,1598.1,5.53255]
[1744892356920,3.34455,1598.2,1598.1,3.44925]
[1744892359727,9.30181,1598.3,1598.2,1.25175]
[1744892360924,11.50181,1598.3,1598.2,1.25175]
[1744892361620,11.50186,1598.3,1598.0,9.46736]
[1744892361826,1.25176,1598.2,1598.1,1.25183]
[1744892362231,11.33064,1598.3,1598.2,1.25175]
[1744892362426,11.33064,1598.3,1598.2,3.25175]
[1744892364022,11.33064,1598.3,1598.2,6.45955]
[1744892364317,7.24174,1598.3,1598.2,6.45955]
[1744892364626,7.24174,1598.3,1598.2,8.48415]
[1744892365220,1.25174,1598.3,1598.2,8.48415]
[1744892366019,3.34844,1598.3,1598.2,8.48415]
[1744892366821,3.34844,1598.3,1598.2,10.62855]
[1744892367021,3.34844,1598.3,1598.2,8.60395]
[1744892367530,2.0967,1598.3,1598.2,8.60395]
[1744892367825,1.25165,1598.4,1598.3,1.25167]
[1744892368025,1.25165,1598.4,1598.3,3.35877]
[1744892369929,2.0001,1598.5,1598.4,1.2516]
[1744892370127,2.0001,1598.5,1598.4,6.5665]
[1744892370530,3.25162,1598.5,1598.4,6.5665]
[1744892371024,2.0001,1598.5,1598.4,6.5665]
[1744892371528,3.25162,1598.5,1598.4,6.5665]
[1744892371731,2.0001,1598.5,1598.4,6.5665]
[1744892372230,3.25162,1598.5,1598.4,6.5665]
[1744892375228,2.0001,1598.5,1598.4,6.5665]
[1744892375532,0.00626415,1598.6,1598.5,1.25152]
[1744892375829,1.25770415,1598.6,1598.5,5.62952]
[1744892376828,3.35320415,1598.6,1598.5,5.62952]
[1744892378329,1.25167,1598.3,1598.2,11.54068156]
[1744892378524,1.25167,1598.3,1598.2,8.33288156]
[1744892378829,3.40327,1598.3,1598.2,8.33288156]
[1744892379924,1.25183,1598.1,1598.0,8.33288156]
[1744892380731,3.31503,1598.1,1598.0,8.33288156]
[1744892382932,1.25199,1597.9,1597.8,5.49649763]
[1744892383530,3.28709,1597.9,1597.8,4.24450763]
[1744892383924,5.42479,1597.9,1597.8,5.49657763]
[1744892386534,1.25199,1598.0,1597.9,1.25199]
[1744892386735,1.25199,1598.0,1597.9,3.35969]
[1744892387126,1.2519,1598.1,1598.0,1.25188]
[1744892387433,3.42561,1598.2,1598.1,1.25183]
[1744892388134,3.42561,1598.2,1598.1,5.47433]
[1744892390341,1.25183,1598.1,1598.0,3.2078]
[1744892390546,1.25183,1598.1,1598.0,6.48121]
[1744892393340,7.64951,1598.2,1598.1,1.25183]
[1744892393542,5.61591,1598.2,1598.1,1.25183]
[1744892395329,3.42561,1598.2,1598.1,1.25183]
[1744892399844,1.25183,1598.1,1598.0,5.2293]
[1744892400041,1.25183,1598.1,1598.0,6.48113]
[1744892400741,3.33123,1598.1,1598.0,6.48113]
[1744892402441,3.4256,1598.2,1598.1,1.25183]
[1744892403141,1.2518,1598.2,1598.1,1.25183]
[1744892406547,1.2518,1598.2,1598.1,3.31833]
[1744892406739,3.3436,1598.2,1598.1,3.31833]
[1744892408337,3.3436,1598.2,1598.1,2.0665]
[1744892409146,3.3436,1598.2,1598.0,6.48119]
[1744892409340,7.54743,1598.1,1598.0,3.2078]
[1744892409546,7.54743,1598.1,1598.0,5.3531]
[1744892409747,7.54743,1598.1,1598.0,4.45971]
[1744892409944,7.54743,1598.1,1598.0,6.60501]
[1744892410649,7.54743,1598.1,1598.0,5.3531]
[1744892412055,7.54743,1598.1,1598.0,6.60501]
[1744892412950,5.45182,1598.2,1598.1,1.25183]
[1744892413138,1.25182,1598.2,1598.1,3.32873]
[1744892415544,1.25182,1598.2,1598.1,2.0769]
[1744892415947,5.40542,1598.2,1598.1,3.32873]
[1744892416650,5.40542,1598.2,1598.1,2.0769]
[1744892418553,1.25183,1598.1,1598.0,4.45965]
[1744892418755,3.42353,1598.1,1598.0,6.47905]
[1744892421055,3.42353,1598.1,1598.0,6.47911]
[1744892421558,3.42353,1598.1,1598.0,2.0194]
[1744892421758,1.25191,1598.0,1597.9,3.41661]
[1744892421958,5.63691,1598.0,1597.9,3.41661]
[1744892422161,5.63691,1598.0,1597.9,5.49691]
[1744892422455,5.63691,1598.0,1597.9,3.33229]
[1744892423061,5.63691,1598.0,1597.9,1.25199]
[1744892423657,5.63691,1598.0,1597.9,3.23719]
[1744892424558,5.63691,1598.0,1597.9,1.9852]
[1744892425352,5.63691,1598.0,1597.9,3.23719]
[1744892426156,5.63691,1598.0,1597.9,1.9852]
[1744892426353,1.25199,1597.9,1597.8,0.00940763]
[1744892426658,9.76719,1597.9,1597.8,0.00940763]
[1744892428862,7.57129,1597.9,1597.8,3.46147763]
[1744892429057,1.25199,1597.9,1597.8,3.46147763]
[1744892429858,1.25199,1597.9,1597.8,2.20940763]
[1744892430059,3.25439,1597.9,1597.8,2.20940763]
[1744892430366,3.25439,1597.9,1597.8,0.00940763]
[1744892430560,5.30279,1597.9,1597.8,0.00940763]
[1744892431069,3.25439,1597.9,1597.8,1.26147763]
[1744892432169,3.25439,1597.9,1597.8,0.00940763]
[1744892432766,3.25439,1597.9,1597.8,1.26147763]
[1744892432964,3.25439,1597.9,1597.8,3.42297763]
[1744892433373,3.25439,1597.9,1597.8,2.17090763]
[1744892434170,3.25439,1597.9,1597.8,3.42297763]
[1744892434670,3.25439,1597.9,1597.8,2.17090763]
[1744892435564,3.25439,1597.9,1597.8,0.00940763]
[1744892437965,1.25222,1597.6,1597.5,5.30959]
[1744892440165,3.44822,1597.6,1597.5,4.0573]
[1744892440369,3.44822,1597.6,1597.5,5.3096]
[1744892440572,1.25222,1597.6,1597.5,5.3096]
[1744892441459,5.99940763,1597.7,1597.6,1.25222]
[1744892441766,5.99940763,1597.7,1597.6,5.50222]
[1744892442165,7.25154763,1597.7,1597.6,5.50222]